bitfinex-derivatives/quotes_ETHF0:USTF0_20241024
["timestamp","ask_amount","ask_price","bid_price","bid_amount"]
[1729762703099,0.39645,2524.5,2524.4,0.4263]
[1729762703894,3.6064,2524.8,2524.3,0.3977]
[1729762704086,0.9911,2524.6,2524.2,3.2078]
[1729762704281,0.39648,2524.3,2524.2,3.2078]
[1729762704687,4.35808,2524.3,2524.2,3.2078]
[1729762705084,4.35808,2524.3,2523.9,0.4348]
[1729762705085,0.39653,2524.0,2523.9,0.4348]
[1729762706295,0.99133,2524.1,2523.6,5.68082409]
[1729762706500,0.39658,2523.7,2523.6,6.11982409]
[1729762706692,0.39658,2523.7,2523.6,2.91202409]
[1729762707099,0.39658,2523.7,2523.6,0.439]
[1729762707299,0.39661,2523.5,2523.4,2.47302409]
[1729762707597,0.39662,2523.4,2523.3,0.439]
[1729762707803,41.19662,2523.4,2523.3,0.439]
[1729762708997,40.8,2523.4,2523.3,0.439]
[1729762709598,41.19662,2523.4,2523.3,0.439]
[1729762709799,40.8,2523.4,2523.3,0.439]
[1729762710100,40.8,2523.4,2523.3,0.83564]
[1729762710604,0.39661,2523.5,2523.3,0.439]
[1729762711009,41.19661,2523.5,2523.3,0.439]
[1729762711506,0.39661,2523.5,2523.3,0.83563]
[1729762711702,0.39661,2523.5,2523.3,0.439]
[1729762711901,41.19661,2523.5,2523.3,0.439]
[1729762712199,41.19661,2523.5,2523.3,0.83564]
[1729762712401,0.39661,2523.5,2523.3,0.439]
[1729762713005,0.4299,2523.4,2523.3,0.439]
[1729762713201,0.4299,2523.4,2523.3,0.83564]
[1729762713900,0.82652,2523.4,2523.3,0.439]
[1729762714117,4.3931,2523.4,2522.8,3.2078]
[1729762714409,0.39669,2523.0,2522.8,4.01481]
[1729762714708,0.39669,2523.0,2522.8,3.6181]
[1729762715003,0.4299,2522.9,2522.8,3.6181]
[1729762716301,0.4299,2522.9,2522.8,0.4103]
[1729762716302,0.8266,2522.9,2522.8,0.4103]
[1729762716504,0.8266,2522.9,2522.5,3.98179518]
[1729762716505,4.3939,2522.9,2522.5,3.98179518]
[1729762716705,0.82661,2522.9,2522.6,0.39674]
[1729762717100,0.39672,2522.8,2522.6,0.39674]
[1729762717506,0.82661,2522.9,2522.6,0.39674]
[1729762718402,0.39672,2522.8,2522.6,0.39674]
[1729762719107,0.4299,2522.9,2522.7,3.2078]
[1729762719408,0.82661,2522.9,2522.7,3.2078]
[1729762719599,4.79061,2522.9,2522.7,3.2078]
[1729762720402,4.3939,2522.9,2522.7,3.2078]
[1729762720611,0.39672,2522.8,2522.6,0.39674]
[1729762720807,0.4299,2522.9,2522.5,3.27446927]
[1729762721011,0.39672,2522.8,2522.6,0.39674]
[1729762721202,0.4299,2522.9,2522.6,0.39674]
[1729762721401,0.82661,2522.9,2522.6,0.39674]
[1729762721710,0.39672,2522.8,2522.6,0.39675]
[1729762725307,0.4299,2522.9,2522.6,0.39675]
[1729762725807,0.39672,2522.8,2522.6,0.39675]
[1729762726108,0.39672,2522.8,2522.6,0.39674]
[1729762726705,0.82661,2522.9,2522.6,0.39674]
[1729762726904,0.4299,2522.9,2522.8,0.39672]
[1729762727209,0.39668,2523.1,2522.8,3.2078]
[1729762727405,0.83278,2523.1,2522.9,0.3967]
[1729762727602,0.83278,2523.1,2523.0,0.4211]
[1729762728805,0.4361,2523.1,2523.0,0.4211]
[1729762729115,0.39666,2523.2,2523.0,0.4211]
[1729762729306,0.39666,2523.2,2523.1,0.39667]
[1729762730305,4.0539,2523.3,2523.0,0.81778]
[1729762730306,0.39667,2523.1,2523.0,0.81778]
[1729762730513,4.0539,2523.3,2523.1,0.39666]
[1729762730514,0.39666,2523.2,2523.1,0.39666]
[1729762732313,0.39667,2523.1,2523.0,0.4211]
[1729762732812,0.39667,2523.1,2523.0,0.81779]
[1729762733221,0.39666,2523.2,2523.1,0.39665]
[1729762738417,0.4157,2523.3,2523.0,0.4211]
[1729762738721,0.81235,2523.3,2523.2,0.39665]
[1729762740014,0.39667,2523.2,2523.1,0.39666]
[1729762740217,0.4157,2523.3,2523.0,0.4211]
[1729762740419,0.81235,2523.3,2523.2,0.39665]
[1729762741815,0.81235,2523.3,2523.0,0.4211]
[1729762742016,0.39667,2523.2,2523.1,0.39666]
[1729762742519,0.39671,2523.0,2522.9,0.3967]
[1729762743220,0.3967,2522.9,2522.8,0.80651]
[1729762743425,0.99165,2523.2,2522.8,0.4098]
[1729762743728,0.3967,2522.9,2522.8,0.80651]
[1729762744114,0.3967,2522.9,2522.8,0.4098]
[1729762744321,0.3967,2522.9,2522.8,0.80652]
[1729762744522,0.3967,2522.9,2522.8,0.4098]
[1729762745924,0.3967,2522.9,2522.8,0.80652]
[1729762747329,0.3967,2522.9,2522.8,0.4098]
[1729762747732,0.39673,2522.7,2522.6,3.2078]
[1729762747932,0.39673,2522.7,2522.6,3.60455]
[1729762748229,3.6235,2523.3,2522.6,3.2078]
[1729762748425,4.61514,2523.3,2522.6,3.2078]
[1729762748828,4.61514,2523.3,2522.9,0.3967]
[1729762748829,0.39668,2523.1,2522.9,0.3967]
[1729762749333,0.39669,2523.0,2522.9,0.3967]
[1729762750432,0.39669,2523.0,2522.9,1.14316099]
[1729762750831,0.39669,2523.0,2522.9,1.53986099]
[1729762751029,0.39669,2523.1,2522.9,0.3967]
[1729762751240,0.39669,2523.0,2522.9,3.6045]
[1729762751534,0.39669,2523.0,2522.9,4.74766099]
[1729762751724,0.39668,2523.1,2522.9,4.35096099]
[1729762751921,0.39667,2523.2,2523.1,1.14316099]
[1729762753734,0.39667,2523.2,2523.1,1.53983099]
[1729762753932,0.4157,2523.3,2523.1,1.14316099]
[1729762754132,0.4157,2523.3,2523.0,0.4358]
[1729762754133,0.4157,2523.3,2523.2,1.98141099]
[1729762754523,1.14316099,2523.5,2523.2,1.58476099]
[1729762754727,1.96597099,2523.5,2523.4,1.14316099]
[1729762755130,40.8,2523.7,2523.4,1.14316099]
[1729762755327,41.60529,2523.7,2523.6,1.53975099]
[1729762755624,0.416,2523.8,2523.7,0.39658]
[1729762755625,0.39656,2523.8,2523.7,0.39658]
[1729762755833,0.39656,2523.8,2523.7,1.57296099]
[1729762756025,1.53972099,2523.8,2523.7,1.57296099]
[1729762756225,41.19656,2523.8,2523.7,0.4298]
[1729762756430,0.39661,2523.5,2523.4,4.67019608]
[1729762756833,0.39661,2523.5,2523.4,0.4298]
[1729762757038,0.39661,2523.5,2523.4,0.82642]
[1729762757234,40.8,2523.8,2523.4,7.6008]
[1729762757427,41.19657,2523.8,2523.6,0.39658]
[1729762757627,41.19657,2523.8,2523.5,0.8312]
[1729762757628,0.39658,2523.7,2523.5,0.8312]
[1729762757835,40.8,2523.8,2523.4,4.67019608]
[1729762758035,0.4087,2523.6,2523.4,5.09659608]
[1729762758339,0.4087,2523.6,2523.4,4.064]
[1729762758544,0.80529,2523.6,2523.4,5.49320608]
[1729762758844,0.80529,2523.6,2523.4,4.46061]
[1729762759641,0.80529,2523.6,2523.4,1.25281]
[1729762759941,0.80529,2523.6,2523.4,4.46061]
[1729762760141,0.4087,2523.6,2523.5,0.39661]
[1729762760440,41.60747,2523.8,2523.6,0.39659]
[1729762761031,41.2109,2523.8,2523.7,0.39658]
[1729762761535,41.2109,2523.8,2523.4,5.09659608]
[1729762761742,0.39658,2523.7,2523.5,0.39659]
[1729762762230,0.80747,2523.8,2523.6,0.39659]
[1729762762431,0.39659,2523.7,2523.5,0.3966]
[1729762762631,41.1966,2523.6,2523.4,4.46062]
[1729762762934,40.8,2523.6,2523.3,1.03259608]
[1729762763129,0.80881,2523.5,2523.3,0.39663]
[1729762763733,0.4346,2523.4,2523.3,0.39663]
[1729762763926,0.83123,2523.4,2523.2,0.39665]
[1729762764236,0.4346,2523.4,2523.1,5.08679608]
[1729762764427,0.83123,2523.4,2523.2,0.39665]
[1729762764632,0.39664,2523.3,2523.1,5.48345608]
[1729762764937,0.83123,2523.4,2523.2,0.39665]
[1729762766135,0.4346,2523.4,2523.1,5.08679608]
[1729762766349,0.4346,2523.4,2523.2,0.39665]
[1729762766530,0.4346,2523.4,2523.1,5.08679608]
[1729762766731,0.83123,2523.4,2523.2,0.39665]
[1729762768534,0.4346,2523.4,2523.1,4.0542]
[1729762768733,0.4346,2523.4,2523.3,0.39664]
[1729762770049,0.83122,2523.4,2523.3,0.39664]
[1729762770242,0.4346,2523.4,2523.3,0.39664]
[1729762770546,0.83123,2523.4,2523.2,0.39664]
[1729762771038,0.39664,2523.3,2523.1,4.45086]
[1729762771242,0.4346,2523.4,2522.9,1.03259608]
[1729762771439,0.4346,2523.4,2522.9,1.42929608]
[1729762771440,0.39668,2523.1,2522.9,1.42929608]
[1729762771636,0.8392,2523.0,2522.8,0.8206]
[1729762771839,1.2359,2523.0,2522.8,1.21731]
[1729762772737,1.2359,2523.0,2522.8,0.8206]
[1729762772939,1.2359,2523.0,2522.8,1.21731]
[1729762773233,0.8392,2523.0,2522.8,0.8206]
[1729762773435,0.3967,2522.9,2522.8,0.8206]
[1729762774147,0.8392,2523.0,2522.7,3.2078]
[1729762774444,0.3967,2522.9,2522.7,4.42442]
[1729762774840,0.8392,2523.0,2522.7,4.0277]
[1729762775143,1.2359,2523.0,2522.8,0.39671]
[1729762775345,0.39671,2522.9,2522.7,5.45701608]
[1729762775645,0.8392,2523.0,2522.7,4.0277]
[1729762775646,0.39672,2522.8,2522.7,4.0277]
[1729762775842,0.8392,2523.0,2522.7,4.0277]
[1729762776146,0.39671,2522.9,2522.7,4.42443]
[1729762776443,2.37916102,2523.0,2522.8,1.53997102]
[1729762776650,1.2359,2523.0,2522.9,1.14326102]
[1729762777039,5.1999,2523.0,2522.9,1.14326102]
[1729762779741,5.19989,2523.0,2522.9,1.14326102]
[1729762779937,5.60849,2523.0,2522.9,1.14326102]
[1729762780147,0.39672,2522.8,2522.7,1.14326102]
[1729762780636,1.2478,2523.0,2522.7,1.14326102]
[1729762780637,2.39106102,2523.0,2522.7,1.14326102]
[1729762780843,0.39671,2522.9,2522.8,1.14326102]
[1729762781354,4.36071,2522.9,2522.8,1.14326102]
[1729762782253,0.8392,2523.0,2522.9,0.3967]
[1729762782543,0.4037,2523.2,2522.9,1.14326102]
[1729762782750,0.39668,2523.1,2523.0,1.57466102]
[1729762782947,0.4037,2523.2,2523.0,1.57466102]
[1729762783152,0.4037,2523.2,2523.1,1.14326102]
[1729762783346,4.76355,2523.2,2523.1,1.14326102]
[1729762786249,0.80035,2523.2,2523.1,1.14326102]
[1729762787155,1.94361102,2523.2,2523.1,1.14326102]
[1729762788549,0.39665,2523.2,2523.1,1.14326102]
[1729762794251,0.39665,2523.2,2523.1,1.53993102]
[1729762794459,0.39665,2523.2,2523.1,1.95493102]
[1729762796155,0.39665,2523.2,2523.1,1.55826102]
[1729762796362,0.39665,2523.2,2523.1,1.95493102]
[1729762796759,0.39665,2523.2,2523.1,1.55826102]
[1729762797055,0.39665,2523.3,2523.1,1.95492102]
[1729762797361,0.39663,2523.4,2523.2,5.16331102]
[1729762797560,0.39663,2523.4,2523.3,1.14326102]
[1729762799050,0.39663,2523.4,2523.3,4.35106102]
[1729762800560,1.14326102,2523.4,2523.2,0.4156]
[1729762800765,0.80424,2523.3,2523.2,1.55886102]
[1729762801862,1.94676102,2523.5,2523.2,1.55886102]
[1729762802058,0.3988,2523.5,2523.4,1.14326102]
[1729762802255,0.79541,2523.5,2523.4,1.14326102]
[1729762802652,0.79541,2523.5,2523.4,1.57906102]
[1729762807355,1.93867102,2523.5,2523.4,0.4358]
[1729762807665,2.36377102,2523.5,2523.4,0.4358]
[1729762810772,0.39658,2523.7,2523.6,0.39659]
[1729762810961,0.39657,2523.8,2523.7,0.39658]
[1729762811160,0.39657,2523.8,2523.7,1.57196102]
[1729762811373,0.39657,2523.8,2523.7,1.14326102]
[1729762811875,0.39661,2523.5,2523.4,0.4358]
[1729762812061,0.39661,2523.5,2523.4,1.57906102]
[1729762817169,2.13480102,2523.5,2523.1,2.1802977]
[1729762817379,0.39665,2523.2,2523.1,2.1802977]
[1729762818072,0.39665,2523.2,2523.1,1.14326102]
[1729762819078,0.39665,2523.2,2523.1,2.1802977]
[1729762819778,0.39665,2523.2,2523.1,1.14326102]
[1729762819975,5.51816102,2523.2,2522.8,1.03703668]
[1729762820177,0.39672,2522.8,2522.7,1.14326102]
[1729762820682,1.24692,2522.8,2522.7,1.14326102]
[1729762820880,0.39673,2522.7,2522.6,0.4157]
[1729762821075,0.39673,2522.7,2522.6,1.55896102]
[1729762821876,0.3968,2522.3,2522.2,1.14326102]
[1729762822077,0.39681,2522.3,2522.2,1.14326102]
[1729762822478,41.62441,2522.3,2522.2,1.14326102]
[1729762824076,45.58921,2522.3,2522.2,1.14326102]
[1729762824278,41.62441,2522.3,2522.2,1.14326102]
[1729762824478,41.2276,2522.3,2522.2,1.14326102]
[1729762824879,0.4117,2522.6,2522.2,1.14326102]
[1729762825086,0.82434,2522.7,2522.5,1.14326102]
[1729762825281,0.4276,2522.7,2522.6,1.54266102]
[1729762825783,3.2078,2522.8,2522.7,0.39673]
[1729762826086,0.99156,2523.5,2522.7,1.14326102]
[1729762826087,0.39671,2522.9,2522.7,1.14326102]
[1729762826277,0.39671,2522.9,2522.8,1.56556102]
[1729762826679,0.3967,2522.9,2522.8,1.56556102]
[1729762827284,1.14326102,2523.0,2522.8,1.14326102]
[1729762827479,0.3967,2522.9,2522.8,1.14326102]
[1729762827685,0.8161,2522.9,2522.8,1.14326102]
[1729762827995,0.39673,2522.7,2522.6,3.6072]
[1729762828183,0.39673,2522.7,2522.6,4.75046102]
[1729762828385,0.39673,2522.7,2522.6,3.2078]
[1729762828893,0.39673,2522.7,2522.6,1.14326102]
[1729762829891,0.39673,2522.7,2522.3,4.66004069]
[1729762829892,1.14326102,2522.7,2522.3,4.24554069]
[1729762830090,0.39678,2522.5,2522.4,1.14326102]
[1729762830285,1.14326102,2522.5,2522.3,3.2078]
[1729762830590,1.14326102,2522.5,2522.2,1.14326102]
[1729762830591,0.3968,2522.3,2522.2,1.14326102]
[1729762831092,4.3616,2522.3,2522.2,1.14326102]
[1729762832388,3.2078,2522.6,2522.3,0.39678]
[1729762832692,0.39677,2522.5,2522.3,0.39679]
[1729762832887,3.6484,2522.6,2522.2,2.4776871]
[1729762833291,0.39676,2522.5,2522.2,2.8744871]
[1729762833596,3.6484,2522.6,2522.2,2.8744871]
[1729762833597,0.39679,2522.4,2522.2,2.8744871]
[1729762833994,0.39679,2522.4,2522.2,2.4776871]
[1729762834201,0.39678,2522.5,2522.3,0.3968]
[1729762835004,3.6484,2522.6,2522.2,2.4776871]
[1729762835202,0.4232,2522.8,2522.4,2.4776871]
[1729762835406,0.39675,2522.6,2522.5,0.4378]
[1729762835705,0.39678,2522.4,2522.3,3.60459]
[1729762835905,0.39678,2522.4,2522.3,0.39679]
[1729762836300,0.39679,2522.4,2522.2,2.8744971]
[1729762836604,0.3968,2522.3,2522.2,2.4776871]
[1729762836992,0.39681,2522.2,2522.1,0.4378]
[1729762837198,0.99188,2522.6,2522.1,0.4378]
[1729762837405,0.39681,2522.2,2522.1,0.4378]
[1729762842909,0.8108,2522.3,2522.1,0.83462]
[1729762843107,0.414,2522.3,2522.1,0.4378]
[1729762843301,0.39681,2522.2,2522.1,0.4378]
[1729762843707,0.39681,2522.2,2522.1,3.6456]
[1729762846012,0.39681,2522.2,2522.1,3.2078]
[1729762847008,0.39683,2522.1,2522.0,2.9146871]
[1729762849006,0.39682,2522.2,2522.0,3.3115171]
[1729762849206,0.414,2522.3,2522.1,0.39683]
[1729762849405,0.8108,2522.3,2522.1,0.83603]
[1729762849603,0.8108,2522.3,2522.2,0.4282]
[1729762851414,0.3968,2522.3,2522.2,0.82501]
[1729762851717,0.3968,2522.3,2522.2,0.4282]
[1729762852516,0.3968,2522.3,2522.2,1.57165793]
[1729762854220,0.3968,2522.3,2522.2,1.14345793]
[1729762854718,0.3968,2522.3,2522.2,1.58275793]
[1729762854915,0.3968,2522.3,2522.2,1.97956793]
[1729762856817,0.4186,2522.5,2522.2,1.58275793]
[1729762857031,0.39679,2522.4,2522.3,0.39679]
[1729762857215,0.3968,2522.3,2522.2,0.8361]
[1729762857718,0.4186,2522.5,2522.2,0.8361]
[1729762857923,0.39679,2522.4,2522.3,0.39678]
[1729762858421,0.39679,2522.4,2522.3,1.54023793]
[1729762859419,0.81537,2522.5,2522.4,0.39678]
[1729762859626,0.81537,2522.5,2522.4,1.54023793]
[1729762860419,0.39677,2522.5,2522.4,1.54023793]
[1729762860618,0.39677,2522.5,2522.4,1.14345793]
[1729762862625,0.39677,2522.5,2522.4,1.54023793]
[1729762862825,0.39677,2522.5,2522.4,1.14345793]
[1729762863219,0.39677,2522.5,2522.4,1.54023793]
[1729762863415,0.39677,2522.5,2522.4,1.14345793]
[1729762866027,1.14345793,2522.6,2522.2,4.68484069]
[1729762866224,0.3968,2522.3,2522.2,4.68484069]
[1729762866537,0.3968,2522.3,2522.2,5.82829862]
[1729762866826,0.3968,2522.3,2522.2,9.79309862]
[1729762867417,2.13529793,2522.7,2522.2,11.71012165]
[1729762867622,0.39675,2522.6,2522.5,1.14345793]
[1729762870628,0.39675,2522.6,2522.2,5.08165069]
[1729762870629,0.3968,2522.3,2522.2,5.08165069]
[1729762870834,0.3968,2522.3,2522.2,6.22510862]
[1729762871141,0.3968,2522.3,2522.2,5.82829862]
[1729762871632,0.3968,2522.3,2522.2,4.79055793]
[1729762872025,0.3968,2522.3,2522.2,5.82829862]
[1729762873933,0.81329,2522.4,2522.2,11.71101688]
[1729762874131,0.39676,2522.6,2522.4,0.39677]
[1729762874321,0.39676,2522.6,2522.5,1.95645793]
[1729762878830,0.39678,2522.4,2522.3,1.03774069]
[1729762879132,0.39681,2522.2,2522.1,2.18119862]
[1729762879435,0.39681,2522.2,2522.1,1.14345793]
[1729762879630,4.36161,2522.2,2522.1,2.18119862]
[1729762880536,4.36161,2522.2,2522.1,1.14345793]
[1729762880726,4.36161,2522.2,2522.0,4.24554069]
[1729762880727,0.39683,2522.1,2522.0,2.18119862]
[1729762881229,0.39683,2522.1,2522.0,1.14345793]
[1729762881743,0.39683,2522.1,2522.0,4.35125793]
[1729762883137,0.39683,2522.1,2522.0,3.2078]
[1729762883335,0.39684,2522.0,2521.9,1.43944069]
[1729762883631,0.82914,2522.0,2521.9,2.58289862]
[1729762883836,1.54505793,2522.3,2521.9,2.58289862]
[1729762884033,0.39684,2522.0,2521.9,1.43944069]
[1729762884836,0.4323,2522.2,2521.9,1.43944069]
[1729762885033,0.82911,2522.2,2522.1,1.14345793]
[1729762885534,4.79391,2522.2,2522.1,1.14345793]
[1729762885738,0.4323,2522.2,2522.1,1.14345793]
[1729762885926,1.14345793,2522.6,2522.1,4.35125793]
[1729762886126,0.3968,2522.3,2522.2,0.3977]
[1729762886531,0.39679,2522.4,2522.2,0.3977]
[1729762886737,0.3992,2522.5,2522.3,0.4348]
[1729762886940,3.2078,2522.9,2522.3,0.4348]
[1729762886941,5.34302793,2522.9,2522.3,0.4348]
[1729762887141,0.39678,2522.5,2522.3,0.8316]
[1729762887639,0.39676,2522.6,2522.4,0.39678]
[1729762887934,0.39676,2522.6,2522.3,0.4348]
[1729762887935,0.39676,2522.6,2522.5,0.4181]
[1729762888339,0.39676,2522.6,2522.5,1.56155793]
[1729762890540,0.39676,2522.6,2522.5,1.95831793]
[1729762891037,0.39672,2522.8,2522.7,0.39672]
[1729762891242,0.39671,2522.9,2522.7,5.39162864]
[1729762891539,0.39671,2522.9,2522.8,1.54017793]
[1729762891742,0.39671,2522.9,2522.8,1.95917793]
[1729762891943,0.39671,2522.9,2522.8,1.56245793]
[1729762892334,1.14345793,2522.9,2522.7,4.24817071]
[1729762892540,1.14345793,2522.9,2522.5,2.18382864]
[1729762892541,5.10745793,2522.8,2522.5,2.18382864]
[1729762892838,0.39676,2522.5,2522.4,1.14345793]
[1729762893239,4.36076,2522.5,2522.4,1.14345793]
[1729762894432,0.3968,2522.3,2522.2,1.14345793]
[1729762894944,41.1968,2522.3,2522.2,1.14345793]
[1729762895141,41.625,2522.3,2522.2,1.14345793]
[1729762896745,0.39681,2522.2,2522.1,0.4003]
[1729762896940,0.39684,2522.0,2521.9,1.04037071]
[1729762897145,2.13549793,2522.2,2522.0,1.14345793]
[1729762897146,0.82033,2522.1,2522.0,1.14345793]
[1729762898139,4.35125793,2522.6,2522.0,1.14345793]
[1729762898337,1.96371793,2522.5,2522.4,1.14345793]
[1729762898746,46.33095793,2522.5,2522.3,1.14345793]
[1729762898935,0.39678,2522.4,2522.3,1.14345793]
[1729762899449,1.54023793,2522.4,2522.3,1.14345793]
[1729762899638,1.14345793,2522.4,2522.1,0.4148]
[1729762899835,0.39681,2522.2,2522.1,0.81162]
[1729762900248,0.3968,2522.3,2522.2,0.3968]
[1729762900752,0.3968,2522.3,2522.2,1.14345793]
[1729762901147,0.39681,2522.2,2522.1,1.14345793]
[1729762901347,0.39686,2521.9,2521.8,0.4342]
[1729762901647,0.39686,2521.9,2521.8,1.57765793]
[1729762902747,0.39686,2521.9,2521.8,5.18405793]
[1729762902942,0.3998,2522.1,2521.8,5.18405793]
[1729762903150,0.79663,2522.1,2522.0,1.14345793]
[1729762904354,0.39685,2522.0,2521.8,7.95554578]
[1729762906556,0.4061,2522.2,2521.8,7.55867578]
[1729762906742,0.39681,2522.2,2522.0,2.87453507]
[1729762906948,0.39681,2522.2,2522.1,0.4096]
[1729762907149,0.39681,2522.2,2522.1,0.8255]
[1729762907748,0.39681,2522.3,2522.1,0.8255]
[1729762907956,3.6335,2522.4,2522.1,0.8255]
[1729762908151,3.6335,2522.4,2522.1,1.22232]
[1729762908355,0.39681,2522.2,2522.1,0.8255]
[1729762909851,3.9648,2522.2,2521.9,1.04037071]
[1729762910044,0.39684,2522.0,2521.9,1.43817071]
[1729762910247,0.39684,2522.0,2521.9,0.3978]
[1729762912456,0.39686,2521.9,2521.8,7.12447578]
[1729762912653,0.39686,2522.0,2521.8,8.40541527]
[1729762912957,0.99197,2522.4,2521.9,1.03979905]
[1729762912958,0.8205,2522.3,2521.9,1.03979905]
[1729762913351,0.39684,2522.0,2521.8,7.92466412]
[1729762913549,0.39683,2522.1,2521.9,1.43665905]
[1729762913758,0.39682,2522.2,2522.0,0.39684]
[1729762913959,0.39682,2522.2,2522.1,0.8173]
[1729762916258,0.39682,2522.2,2522.1,0.4066]
[1729762919953,3.9648,2522.2,2521.9,4.24759905]
[1729762920158,0.39686,2521.9,2521.8,1.03979905]
[1729762920455,0.39686,2521.9,2521.8,1.86819905]
[1729762922153,0.39686,2521.9,2521.8,0.8284]
[1729762923966,0.39686,2521.9,2521.8,1.86819905]
[1729762924157,0.39686,2521.9,2521.8,2.26506905]
[1729762924363,0.3986,2522.3,2521.8,1.86819905]
[1729762924565,0.3986,2522.3,2521.9,3.60465]
[1729762924760,0.39684,2522.0,2521.9,3.60465]
[1729762924959,0.39684,2522.1,2521.9,3.60465]
[1729762925265,0.3999,2522.2,2521.9,3.2078]
[1729762925266,0.39684,2522.0,2521.9,3.2078]
[1729762925456,0.39684,2522.0,2521.9,3.60466]
[1729762926362,0.39684,2522.0,2521.9,4.74813889]
[1729762926758,0.39684,2522.0,2521.9,4.35127889]
[1729762927557,0.39684,2522.0,2521.9,4.74812889]
[1729762927958,0.39684,2522.0,2521.9,4.35127889]
[1729762928867,0.3999,2522.2,2521.9,4.35127889]
[1729762929063,0.3999,2522.2,2522.1,1.14347889]
[1729762929268,0.79671,2522.2,2522.1,1.14347889]
[1729762933365,0.39683,2522.1,2522.0,1.14347889]
[1729762934568,0.39684,2522.0,2521.9,1.14347889]
[1729762936867,0.39683,2522.1,2521.9,1.54032889]
[1729762937170,0.39683,2522.1,2522.0,1.14347889]
[1729762938070,0.39683,2522.1,2522.0,2.18327794]
[1729762938567,0.39682,2522.2,2522.0,2.58010794]
[1729762938870,0.39682,2522.2,2522.1,1.58247889]
[1729762939069,0.39682,2522.2,2522.1,2.00757889]
[1729762941472,0.39682,2522.2,2522.1,2.40440889]
[1729762941874,0.4343,2522.3,2522.1,2.00757889]
[1729762942078,0.3968,2522.3,2522.2,1.58467889]
[1729762942271,0.3968,2522.3,2522.2,1.98148889]
[1729762942470,0.39679,2522.4,2522.3,0.39678]
[1729762942672,0.39679,2522.4,2522.3,1.54025889]
[1729762944074,0.39676,2522.6,2522.5,0.39676]
[1729762944375,0.80674,2522.7,2522.6,0.39675]
[1729762944576,0.80673,2522.7,2522.6,1.97982889]
[1729762944874,0.4027,2522.8,2522.6,1.97982889]
[1729762944875,0.39673,2522.8,2522.7,0.39672]
[1729762945073,0.39673,2522.8,2522.7,2.58163549]
[1729762945370,0.39673,2522.8,2522.7,2.18491549]
[1729762945765,0.39673,2522.8,2522.7,2.58164549]
[1729762945970,0.39673,2522.8,2522.7,2.18491549]
[1729762946978,0.39673,2522.8,2522.7,5.39271549]
[1729762948573,0.39673,2522.8,2522.7,2.18491549]
[1729762949072,0.39673,2522.8,2522.7,5.39271549]
[1729762949371,5.50420889,2522.8,2522.7,1.0414366]
[1729762949583,5.92940889,2522.8,2522.7,1.0414366]
[1729762950073,5.92940889,2522.8,2522.6,1.56215491]
[1729762950074,5.53267889,2522.8,2522.6,1.56215491]
[1729762950265,0.39675,2522.6,2522.5,1.14347889]
[1729762951172,1.14347889,2522.7,2522.3,3.2078]
[1729762951372,0.39678,2522.4,2522.3,3.60459]
[1729762951572,0.39678,2522.4,2522.3,4.74806889]
[1729762952072,0.39678,2522.4,2522.3,4.35127889]
[1729762952281,0.39678,2522.4,2522.3,4.74806889]
[1729762953073,0.39678,2522.4,2522.3,5.18986889]
[1729762953470,0.409,2522.5,2522.3,5.18986889]
[1729762953683,0.80577,2522.5,2522.4,1.14347889]
[1729762959890,5.34303889,2522.9,2522.4,5.50424889]
[1729762960087,0.39673,2522.7,2522.6,1.14347889]
[1729762960290,0.39673,2522.7,2522.6,1.56147889]
[1729762960491,0.39673,2522.7,2522.6,2.00297889]
[1729762961993,0.39673,2522.7,2522.6,2.39972889]
[1729762962294,0.4323,2522.8,2522.7,0.39673]
[1729762962295,0.82903,2522.8,2522.7,0.39673]
[1729762962486,0.39672,2522.8,2522.7,1.54019889]
[1729762962796,0.39672,2522.8,2522.7,1.14347889]
[1729762963598,0.4303,2523.0,2522.7,1.14347889]
[1729762963792,0.39669,2523.0,2522.9,1.14347889]
[1729762964297,0.39669,2523.0,2522.9,1.56907889]
[1729762965195,0.39669,2523.0,2522.9,1.96577889]
[1729762965398,0.39669,2523.0,2522.9,2.37867889]
[1729762965992,0.4303,2523.2,2522.9,1.98197889]
[1729762966300,0.39667,2523.1,2523.0,0.81588]
[1729762966500,0.4303,2523.2,2523.0,0.81588]
[1729762966703,0.82695,2523.2,2523.1,0.39667]
[1729762966997,0.82695,2523.2,2523.0,0.4192]
[1729762967199,0.82695,2523.2,2523.1,0.39667]
[1729762967387,0.82695,2523.2,2523.1,1.14347889]
[1729762968195,0.82695,2523.2,2523.1,1.54014889]
[1729762968694,0.4303,2523.2,2523.1,1.54014889]
[1729762969104,0.82695,2523.2,2523.1,1.54014889]
[1729762969308,0.4303,2523.2,2523.1,1.54014889]
[1729762969600,0.39662,2523.5,2523.3,0.39664]
[1729762969794,0.39662,2523.5,2523.4,1.56577889]
[1729762970394,0.39662,2523.5,2523.4,2.00747889]
[1729762970801,0.39662,2523.5,2523.4,2.40409889]
[1729762971201,0.39662,2523.5,2523.4,2.00747889]
[1729762972400,0.39665,2523.2,2523.1,3.2078]
[1729762972598,0.39665,2523.2,2523.1,5.17167889]
[1729762972794,0.39665,2523.2,2523.1,9.13487889]
[1729762974009,1.25915,2523.2,2523.1,1.14347889]
[1729762974511,0.39669,2523.0,2522.9,0.4]
[1729762974811,0.39669,2523.0,2522.8,1.14347889]
[1729762974812,1.14347889,2523.0,2522.8,1.14347889]
[1729762974997,0.3967,2522.9,2522.8,1.14347889]
[1729762975403,0.39672,2522.8,2522.7,0.4204]
[1729762975610,1.24662,2522.8,2522.7,0.4204]
[1729762975811,1.24662,2522.8,2522.7,1.56387889]
[1729762976209,0.39673,2522.7,2522.6,0.4264]
[1729762976409,0.39673,2522.7,2522.6,1.56987889]
[1729762976612,1.54020889,2522.7,2522.3,0.414]
[1729762976819,1.54022889,2522.6,2522.5,1.14347889]
[1729762977709,0.39675,2522.6,2522.5,1.14347889]